bitfinex/quotes_ETHUSD_20220309
["timestamp","ask_amount","ask_price","bid_price","bid_amount"]
[1646825367732,0.029168,2751.4,2751.3,0.90883]
[1646825367934,0.00266123,2751.5,2751.3,1.20883]
[1646825368174,0.03182923,2751.5,2751.3,1.20883]
[1646825368376,0.66946842,2751.4,2751.3,1.20883]
[1646825369779,0.66946842,2751.4,2751.2,0.52526034]
[1646825370181,0.029168,2751.3,2751.2,0.52526034]
[1646825370381,0.69863642,2751.3,2751.1,3.63587]
[1646825370984,0.66946842,2751.3,2751.1,3.63587]
[1646825371183,0.00244019,2751.4,2751.1,3.63587]
[1646825371184,0.66946842,2751.2,2751.1,3.63587]
[1646825371584,0.69863642,2751.3,2751.1,3.63587]
[1646825372030,0.66946842,2751.2,2751.1,3.63587]
[1646825373238,0.69863642,2751.2,2751.1,3.63587]
[1646825373736,0.66946842,2751.2,2751.1,3.63587]
[1646825374036,0.69863642,2751.2,2751.1,3.63587]
[1646825374234,0.029168,2751.2,2751.1,3.63587]
[1646825374435,0.69863642,2751.2,2751.1,3.63587]
[1646825374835,0.029168,2751.2,2751.1,3.63587]
[1646825375680,0.69863642,2751.2,2751.1,3.63587]
[1646825378788,0.66946842,2751.2,2751.1,3.63587]
[1646825379187,0.69863642,2751.2,2751.1,3.63587]
[1646825379443,0.67193562,2751.3,2751.1,3.63587]
[1646825379834,0.1817,2751.7,2751.1,3.63587]
[1646825380032,1.1817,2751.8,2751.1,3.63587]
[1646825380235,0.029168,2751.6,2751.1,3.63587]
[1646825380433,0.029168,2751.6,2751.5,0.900302]
[1646825381042,0.1817,2751.9,2751.5,1.809332]
[1646825381239,1.52054404,2751.9,2751.6,2.11805]
[1646825381442,4.83884404,2751.8,2751.6,2.11805]
[1646825381639,5.02054404,2751.7,2751.1,0.00236726]
[1646825381843,1.33884404,2751.6,2750.9,0.00236726]
[1646825382038,1.33884404,2751.6,2751.0,1.27983326]
[1646825382039,3.5,2751.5,2751.0,1.27983326]
[1646825382239,3.5,2751.5,2751.1,0.90925]
[1646825382240,0.90939,2751.3,2751.1,0.90925]
[1646825382440,0.44372515,2751.2,2751.1,0.90925]
[1646825385180,2.82172116,2751.4,2751.1,0.90925]
[1646825385181,2.81878,2751.4,2751.1,0.90925]
[1646825385382,2.80683161,2751.4,2751.2,0.90925]
[1646825385581,1.80977277,2751.4,2751.2,0.90925]
[1646825385783,5.98450104,2751.5,2751.3,2.72776]
[1646825385985,3.5,2751.4,2751.3,2.72776]
[1646825386386,5.31878,2751.4,2751.3,3.02776]
[1646825386938,1.81878,2751.4,2751.3,3.02776]
[1646825387329,0.3,2751.4,2751.3,3.02776]
[1646825387526,4.92025673,2751.8,2751.3,3.02776]
[1646825387727,0.1817,2751.7,2751.3,3.02776]
[1646825388126,0.1817,2751.7,2751.3,3.93692]
[1646825388326,0.1817,2751.7,2751.4,0.90916]
[1646825388526,3.59425673,2751.8,2751.4,0.90916]
[1646825388527,0.90926,2751.5,2751.4,0.90916]
[1646825388729,0.90926,2751.5,2751.4,1.20916]
[1646825389127,1.92237434,2751.9,2751.4,1.20916]
[1646825389128,0.89454309,2751.6,2751.4,4.70916]
[1646825389327,0.89454309,2751.6,2751.4,1.20916]
[1646825389931,0.89160913,2751.5,2751.3,2.34477963]
[1646825390879,0.89160913,2751.5,2751.4,0.90916]
[1646825391480,1.80078913,2751.5,2751.4,1.20916]
[1646825400684,1.80078913,2751.5,2751.4,0.3]
[1646825400891,1.80078913,2751.5,2751.3,2.44962489]
[1646825401191,1.80078913,2751.5,2751.4,0.3312817]
[1646825402037,0.89160913,2751.5,2751.4,0.3312817]
[1646825405339,1.22431761,2751.5,2751.4,0.3312817]
[1646825406388,1.22431761,2751.5,2751.3,0.3]
[1646825406792,1.22431761,2751.5,2751.4,0.3312817]
[1646825407389,1.22725157,2751.5,2751.4,0.3312817]
[1646825407591,1.22725157,2751.5,2751.3,1.20915]
[1646825407789,0.89160913,2751.4,2751.3,1.20915]
[1646825409189,3.08245653,2751.4,2751.3,1.20915]
[1646825409447,5.60601241,2751.4,2751.3,1.20915]
[1646825409834,5.60601241,2751.4,2751.1,5.62758088]
[1646825410035,0.670016,2751.2,2751.1,5.62758088]
[1646825410234,0.33270848,2751.2,2751.1,7.17737863]
[1646825410737,0.66999033,2751.2,2751.1,7.17737863]
[1646825410938,1.00269881,2751.2,2751.1,7.17737863]
[1646825411339,0.33270848,2751.2,2751.1,7.17737863]
[1646825411738,1.00268426,2751.2,2751.1,6.81437863]
[1646825411941,0.33270848,2751.2,2751.1,6.81437863]
[1646825412541,1.00274339,2751.2,2751.1,7.20654663]
[1646825412738,1.00274339,2751.2,2751.1,7.50654663]
[1646825412739,0.33270848,2751.2,2751.1,7.50654663]
[1646825412937,0.33270848,2751.2,2751.1,6.84354663]
[1646825413381,0.33270848,2751.2,2751.1,7.20654663]
[1646825414588,4.71440328,2751.2,2751.1,7.20654663]
[1646825415789,4.71440328,2751.2,2751.1,8.20654663]
[1646825417240,4.71440328,2751.2,2751.1,11.70654663]
[1646825417637,0.00242965,2751.5,2751.2,4.0]
[1646825417638,0.67003491,2751.4,2751.2,4.0]
[1646825417838,3.2904916,2752.2,2751.2,4.0]
[1646825417839,0.67003491,2751.6,2751.3,3.863]
[1646825418036,0.67003491,2751.6,2751.3,1.60313489]
[1646825418238,0.67003491,2751.6,2751.4,0.3312817]
[1646825418436,0.89160913,2751.9,2751.4,0.3312817]
[1646825418437,0.00242965,2751.5,2751.4,0.3312817]
[1646825418837,0.00242965,2751.5,2751.4,1.53151367]
[1646825419044,0.00242965,2751.5,2751.4,5.39451367]
[1646825419240,0.67003491,2751.8,2751.5,20.18928]
[1646825419438,0.67003491,2751.9,2751.6,15.73925531]
[1646825419637,0.67003491,2752.0,2751.6,15.73925531]
[1646825419841,2.92692673,2752.7,2751.6,15.73925531]
[1646825419842,0.67003491,2752.1,2751.9,0.029168]
[1646825420039,0.67003491,2752.1,2751.9,0.36038374]
[1646825420239,0.67003491,2752.2,2751.9,2.37796768]
[1646825420439,0.67003491,2752.2,2751.9,4.16630968]
[1646825420683,0.67003491,2752.2,2752.0,4.19238684]
[1646825421293,0.67003491,2752.3,2752.0,4.19238684]
[1646825421788,0.67003491,2752.2,2752.0,4.19238684]
[1646825422492,0.89160913,2752.1,2751.4,0.00236726]
[1646825422689,0.89160913,2752.1,2751.2,1.17056726]
[1646825422690,0.66869583,2751.7,2751.2,1.17056726]
[1646825422887,0.66869583,2751.6,2751.0,0.00236726]
[1646825423089,0.66869583,2751.6,2751.1,0.90905]
[1646825423690,0.66869583,2751.5,2751.1,0.90905]
[1646825425139,1.5862,2751.9,2751.1,0.90905]
[1646825425140,0.66869583,2751.6,2751.1,0.90905]
[1646825426442,1.84292304,2751.6,2751.1,0.90905]
[1646825426841,0.66869583,2751.4,2751.0,0.14758027]
[1646825427043,0.66869583,2751.3,2751.0,0.14758027]
[1646825427648,1.2302824,2750.9,2750.6,1.22186726]
[1646825427844,2.48747583,2751.1,2750.3,4.9739754]
[1646825428040,2.48747583,2751.1,2750.3,0.05340814]
[1646825428284,0.66869583,2751.1,2750.4,0.90934]
[1646825428884,0.66869583,2751.1,2750.4,1.20934]
[1646825429088,0.66869583,2751.2,2750.6,0.96743089]
[1646825429287,1.87139583,2751.3,2750.7,0.25]
[1646825429489,1.87139583,2751.3,2750.8,0.90919]
[1646825429687,0.66869583,2751.3,2750.8,0.90919]
[1646825429889,0.66869583,2751.2,2750.8,0.58726346]
[1646825430089,0.66869583,2751.3,2750.8,0.58726346]
[1646825430690,1.1292264,2751.4,2750.8,0.58726346]
[1646825430691,0.66869583,2751.2,2750.8,0.58726346]
[1646825430893,0.66869583,2751.3,2750.8,0.58726346]
[1646825431297,0.66869583,2751.3,2750.9,3.5]
[1646825431496,0.1817,2751.2,2750.9,3.5]
[1646825431693,0.66869583,2751.5,2750.9,1.81819]
[1646825431945,1.87569583,2751.6,2750.9,2.11819]
[1646825432134,0.66869583,2751.6,2750.9,2.11819]
[1646825432434,0.66869583,2751.6,2751.2,1.15897838]
[1646825432635,0.89160913,2751.9,2751.4,1.846758]
[1646825432636,0.66869583,2751.7,2751.4,1.846758]
[1646825432939,0.89160913,2751.9,2751.5,1.81759]
[1646825432940,0.66869583,2751.9,2751.5,1.81759]
[1646825433335,0.66869583,2751.8,2751.5,1.81759]
[1646825433736,0.66869583,2751.8,2751.5,2.72635]
[1646825433936,0.66869583,2751.9,2751.7,2.86527748]
[1646825434136,0.66869583,2751.9,2751.7,1.81772]
[1646825434338,0.66869583,2751.9,2751.7,2.11772]
[1646825435685,0.66869583,2751.9,2751.7,0.3]
[1646825435893,0.66869583,2751.8,2751.7,0.3]
[1646825436089,0.89160913,2752.0,2751.6,2.11772]
[1646825436290,0.66896596,2751.8,2751.6,2.11772]
[1646825436489,0.89160913,2752.0,2751.6,2.11772]
[1646825436490,0.66896596,2751.7,2751.6,2.11772]
[1646825436689,1.80062913,2752.0,2751.6,3.20693932]
[1646825436690,0.66896596,2751.8,2751.6,3.20693932]
[1646825437290,0.66896596,2751.8,2751.6,3.46275667]
[1646825437490,0.66896596,2751.8,2751.6,5.28054667]
[1646825438190,1.13006012,2752.1,2751.7,3.5]
[1646825438191,0.23845099,2752.0,2751.7,3.5]
[1646825438392,0.90731384,2752.0,2751.7,3.5]
[1646825438591,0.23845099,2751.9,2751.7,3.5]
[1646825438790,0.66886285,2752.1,2751.6,5.28054667]
[1646825438991,0.66886285,2752.1,2751.6,6.28054667]
[1646825439435,0.66886285,2752.1,2751.7,1.81747]
[1646825439634,0.66886285,2752.1,2751.7,2.11747]
[1646825440036,0.00292789,2752.0,2751.7,2.11747]
[1646825440235,0.67179074,2752.0,2751.7,2.11747]
[1646825441039,0.67179074,2752.0,2751.7,0.90874]
[1646825441040,0.67471863,2752.0,2751.7,0.90874]
[1646825441240,0.66886285,2751.9,2751.7,0.90874]
[1646825441546,0.66886285,2751.8,2751.6,1.81772]
[1646825441940,0.66886285,2751.8,2751.6,2.09335843]
[1646825442341,0.67179074,2751.8,2751.6,2.39335843]
[1646825442542,0.00292789,2751.8,2751.6,2.39335843]
[1646825442942,0.00292789,2751.8,2751.6,3.30236843]
[1646825443189,0.66886285,2751.9,2751.6,3.30236843]
[1646825443586,0.00292789,2751.8,2751.6,6.80236843]
[1646825443884,0.89160913,2752.2,2751.6,3.30236843]
[1646825445083,2.12090913,2752.3,2751.6,3.30236843]
[1646825445689,0.89160913,2752.2,2751.6,3.30236843]
[1646825445888,1.06060727,2752.0,2751.6,2.11772]
[1646825446688,1.9522164,2752.0,2751.6,2.11772]
[1646825446951,2.8612364,2752.0,2751.6,2.11772]
[1646825447742,1.96962727,2752.0,2751.6,2.11772]
[1646825447943,2.8612364,2752.0,2751.6,2.11772]
[1646825448345,0.00292057,2751.9,2751.6,2.11772]
[1646825448945,0.8945297,2751.9,2751.6,2.11772]
[1646825449343,0.89160913,2751.9,2751.6,2.11772]
[1646825449543,0.89452965,2751.9,2751.6,2.11772]
[1646825449944,0.89452965,2751.9,2751.6,1.18807502]
[1646825450152,0.00292052,2751.9,2751.6,1.18807502]
[1646825450345,2.8612364,2752.0,2751.6,1.18807502]
[1646825450794,0.00292052,2751.9,2751.6,1.18807502]
[1646825450995,0.00292052,2751.9,2751.6,1.46334013]
[1646825451192,0.89160913,2752.1,2751.8,0.029168]
[1646825451491,1.2293,2752.3,2751.8,0.029168]
[1646825451492,0.89160913,2752.2,2751.8,0.029168]
[1646825453192,0.00291327,2752.1,2751.9,0.90883]
[1646825453792,0.6687555,2752.0,2751.9,0.90883]
[1646825457542,0.90888,2752.4,2751.9,0.90883]
[1646825457543,1.80055913,2752.2,2751.9,0.90883]
[1646825457941,0.00291327,2752.1,2751.9,0.90883]
[1646825458791,1.80055913,2752.2,2751.9,0.90883]
[1646825458987,0.16323699,2752.1,2751.9,0.90883]
[1646825459787,0.66891752,2752.0,2751.9,0.90883]
[1646825459992,0.66897945,2752.0,2751.9,0.90883]
[1646825460389,0.16032372,2752.0,2751.9,4.40883]
[1646825460794,0.67189272,2752.1,2751.9,4.40883]
[1646825461194,0.67189272,2752.1,2752.0,0.27724099]
[1646825461195,0.66897945,2752.1,2752.0,0.27724099]
[1646825461397,0.67189272,2752.1,2752.0,0.27724099]
[1646825462440,0.66897945,2752.2,2752.0,0.27724099]
[1646825462638,0.67189272,2752.2,2752.0,0.27724099]
[1646825462939,0.82930317,2752.1,2752.0,0.27724099]
[1646825463138,0.66897945,2752.1,2752.0,0.27724099]
[1646825463538,0.16032372,2752.1,2752.0,0.27724099]
[1646825463837,0.67189272,2752.2,2752.0,0.27724099]
[1646825464441,0.83221644,2752.2,2752.0,0.27724099]
[1646825464642,0.16032372,2752.1,2752.0,0.27724099]
[1646825465046,0.82930317,2752.1,2752.0,0.27724099]
[1646825466294,0.16032372,2752.1,2751.9,0.90883]
[1646825466498,0.67189272,2752.2,2752.0,3.5]
[1646825466698,0.67189272,2752.2,2751.9,1.20883]
[1646825466895,0.67189272,2752.2,2752.0,0.27607051]
[1646825467095,0.14172136,2752.1,2752.0,0.27607051]
[1646825467495,0.0008767,2752.2,2752.0,2.09362051]
[1646825467999,0.66985615,2752.2,2752.0,2.09362051]
[1646825468397,0.66897945,2752.2,2752.0,2.09362051]
[1646825468796,0.66985615,2752.2,2752.0,2.09362051]
[1646825469463,0.14172136,2752.1,2752.0,2.09362051]
[1646825469650,0.14172136,2752.1,2752.0,6.91567208]
[1646825470050,0.66897945,2752.4,2752.1,5.0]
[1646825470351,0.66897945,2752.5,2752.3,1.20630471]
[1646825470755,0.8032086,2752.5,2752.3,1.20630471]
[1646825470954,0.13422915,2752.4,2752.3,1.20630471]
[1646825472056,0.13422915,2752.4,2752.3,3.93204471]
[1646825474893,0.13422915,2752.4,2752.3,7.43204471]
[1646825475090,0.13422915,2752.4,2752.3,3.93204471]
[1646825476094,0.13422915,2752.4,2752.3,2.72574]
[1646825478943,0.8032086,2752.4,2752.3,2.72574]
[1646825480691,0.13422915,2752.4,2752.3,2.72574]
[1646825481700,0.66890825,2752.4,2752.3,2.72574]
[1646825482699,0.13422915,2752.4,2752.3,2.72574]
[1646825490289,0.13422915,2752.4,2752.3,2.17955035]
[1646825490690,0.13422915,2752.4,2752.3,2.20871835]
[1646825491694,0.13422915,2752.4,2752.3,7.04545364]
[1646825492438,0.13422915,2752.4,2752.3,3.608459]
[1646825497496,0.13422915,2752.4,2752.3,3.579291]
[1646825497698,0.13422915,2752.4,2752.3,2.17955035]
[1646825498297,0.8031374,2752.4,2752.3,2.17955035]
[1646825499097,0.13422915,2752.4,2752.3,2.17955035]
[1646825499748,0.8031374,2752.4,2752.3,2.17955035]
[1646825500552,0.13422915,2752.4,2752.3,2.17955035]
[1646825500750,0.8031374,2752.4,2752.3,2.17955035]
[1646825502150,0.13422915,2752.4,2752.3,3.61435597]
[1646825502550,0.8031374,2752.4,2752.3,2.17955035]
[1646825502750,0.8031374,2752.4,2752.3,3.61465152]
[1646825502751,0.13422915,2752.4,2752.3,3.61465152]
[1646825504198,0.13422915,2752.4,2752.1,0.90855]
[1646825504400,0.80413951,2752.3,2751.8,1.27673419]
[1646825504598,1.25752021,2752.5,2751.9,1.43559216]
[1646825504599,0.80413951,2752.2,2751.9,1.43559216]
[1646825504798,0.13422915,2752.1,2751.9,1.43559216]
[1646825504997,0.13422915,2752.0,2751.9,1.43559216]
[1646825505900,0.13422915,2752.0,2751.9,2.34455216]
[1646825508047,0.13422915,2752.0,2751.9,2.37372016]
[1646825508547,0.00291101,2752.1,2751.9,2.37372016]
[1646825508746,0.00291101,2752.1,2751.9,0.938128]
[1646825509346,0.66991036,2752.4,2751.9,0.938128]
[1646825509647,0.66991036,2752.4,2752.1,1.78469491]
[1646825509844,0.66991036,2752.4,2752.1,1.99756143]
[1646825510446,0.66991036,2752.4,2752.1,1.79780529]
[1646825510900,0.67282144,2752.4,2752.1,1.79780529]
[1646825511794,0.66991036,2752.4,2752.1,1.79780529]
[1646825511993,0.66991036,2752.3,2752.1,0.70887386]
[1646825513195,0.67282144,2752.3,2752.1,0.70887386]
[1646825513400,0.66991036,2752.2,2752.0,1.81725]
[1646825514096,0.66991036,2752.3,2752.0,1.81725]
[1646825514297,0.00291108,2752.2,2752.0,1.81725]
[1646825515143,0.00291108,2752.2,2752.1,0.029168]
[1646825515344,0.66991036,2752.3,2752.1,0.029168]
[1646825515545,0.00291108,2752.2,2752.1,0.029168]
[1646825516553,0.66991036,2752.3,2752.1,0.029168]
[1646825516752,0.67282144,2752.3,2752.1,0.029168]
[1646825516952,0.00291108,2752.3,2752.1,0.029168]
[1646825517153,0.00291108,2752.3,2752.1,0.25666049]
[1646825517752,0.66991036,2752.4,2752.1,0.25666049]
[1646825517952,0.00291108,2752.3,2752.2,0.029168]
[1646825518896,0.66991036,2752.4,2752.2,0.029168]
[1646825519295,0.67282144,2752.4,2752.2,0.029168]
[1646825519698,0.67282144,2752.4,2752.3,0.93641856]
[1646825520096,0.66991036,2752.4,2752.3,0.93641856]
[1646825520299,0.1816,2752.9,2752.3,0.96558656]
[1646825520300,0.66991036,2752.5,2752.3,0.96558656]
[1646825520600,0.67282144,2752.5,2752.3,0.96558656]
[1646825520803,0.67282144,2752.5,2752.3,3.69119656]
[1646825521306,0.66991036,2752.5,2752.3,3.69119656]
[1646825521505,0.67282144,2752.5,2752.3,3.69119656]
[1646825522040,0.67282144,2752.5,2752.3,2.72561]
[1646825522444,0.66991036,2752.5,2752.3,2.72561]
[1646825522845,0.67282144,2752.5,2752.3,2.72561]
[1646825523649,0.66991036,2752.5,2752.3,2.72561]
[1646825524244,0.67282144,2752.5,2752.3,3.9243566]
[1646825524447,0.67282144,2752.5,2752.3,3.9535246]
[1646825524647,0.00291108,2752.5,2752.4,0.029168]
[1646825524845,0.66991036,2752.6,2752.4,0.029168]
[1646825525047,0.66991036,2752.6,2752.4,0.937778]
[1646825525247,0.00291108,2752.5,2752.4,0.937778]
[1646825526094,0.66991036,2752.6,2752.4,0.937778]
[1646825526493,0.67282144,2752.6,2752.4,0.937778]
[1646825527694,0.66991036,2752.6,2752.4,0.937778]
[1646825527895,0.67282144,2752.6,2752.4,0.937778]
[1646825528299,0.00291108,2752.6,2752.5,11.32565472]
[1646825528598,0.07462828,2752.7,2752.5,2.13198887]
[1646825528803,0.66991036,2752.8,2752.7,0.029168]
[1646825529096,0.66991036,2752.8,2752.7,1.49050215]
[1646825529540,0.07462845,2752.8,2752.7,1.49050215]
[1646825529938,0.66991036,2752.9,2752.7,1.49050215]
[1646825529939,0.67282144,2752.9,2752.7,1.49050215]
[1646825530144,0.00291108,2752.9,2752.8,1.46093179]
[1646825530544,0.00291108,2752.9,2752.7,1.49283855]
[1646825530746,0.67017893,2752.8,2752.7,1.49283855]
[1646825530944,0.67017893,2752.8,2752.7,2.9309523]
[1646825531147,0.74480719,2752.8,2752.7,2.9309523]
[1646825531947,0.07462826,2752.8,2752.7,2.9601203]
[1646825532346,0.67017893,2752.9,2752.7,2.9601203]
[1646825532347,0.67309001,2752.9,2752.7,2.9601203]
[1646825532547,0.67309001,2752.9,2752.8,1.46728175]
[1646825533188,0.67309001,2752.9,2752.7,1.49283855]
[1646825533388,0.67017893,2752.9,2752.8,1.23220545]
[1646825533589,0.67017893,2752.9,2752.7,1.49283855]
[1646825533789,0.67017893,2752.9,2752.8,1.47614796]
[1646825533993,0.67017893,2752.9,2752.7,1.49283855]
[1646825533994,0.74480719,2752.9,2752.7,1.49283855]
[1646825534190,0.00291108,2753.0,2752.7,1.49283855]
[1646825534197,0.74480719,2752.8,2752.7,1.49283855]
[1646825534489,0.67017893,2752.8,2752.7,2.96895773]
[1646825534691,0.96623739,2753.1,2752.7,2.96895773]
[1646825534692,0.67017893,2752.9,2752.7,2.96895773]
[1646825534889,0.67309001,2752.9,2752.7,1.46367055]
[1646825535093,0.74480719,2752.8,2752.7,1.46367055]
[1646825535289,0.74480719,2752.8,2752.7,2.93963849]
[1646825535490,0.67017893,2752.8,2752.7,1.46367055]
[1646825536293,0.07462826,2752.8,2752.7,2.93955681]
[1646825536499,0.67309001,2752.9,2752.7,2.93955681]
[1646825536694,0.67017893,2752.8,2752.7,1.46367055]
[1646825537441,0.67017893,2752.8,2752.5,1.81696]
[1646825537643,0.74480719,2752.7,2752.5,1.81696]
[1646825537840,0.07462826,2752.6,2752.5,1.81696]
[1646825538041,0.07462826,2752.6,2752.5,3.29270395]
[1646825538242,0.67017893,2752.8,2752.5,3.29270395]
[1646825538442,0.00291108,2752.7,2752.6,1.47574395]
[1646825539448,0.67017893,2752.8,2752.6,1.47574395]
[1646825539648,0.67309001,2752.8,2752.6,1.47574395]
[1646825540051,0.67309001,2752.8,2752.5,1.81696]
[1646825540251,0.74480719,2752.7,2752.5,1.81696]
[1646825540452,0.67017893,2752.7,2752.5,1.81696]
[1646825540688,0.00291108,2752.8,2752.6,1.47558409]
[1646825540689,0.67017893,2752.8,2752.6,1.47558409]
[1646825540893,0.67309001,2752.8,2752.6,1.50475209]
[1646825541095,0.67309001,2752.8,2752.6,0.029168]
[1646825541793,0.67017893,2752.8,2752.6,0.029168]
[1646825541994,0.74772483,2752.8,2752.6,0.029168]
[1646825542195,0.07463482,2752.7,2752.6,0.029168]
[1646825542394,0.07463482,2752.7,2752.6,1.50464434]
[1646825542599,0.67309001,2752.8,2752.6,1.50464434]
[1646825542797,0.67309001,2752.8,2752.6,0.058336]
[1646825542995,0.67017893,2752.8,2752.6,0.058336]
[1646825543196,0.67309001,2752.8,2752.6,0.058336]
[1646825543998,0.67309001,2752.8,2752.7,0.058336]
[1646825544201,0.07463482,2752.8,2752.7,1.53379654]
[1646825544459,0.00291108,2752.8,2752.7,1.53379654]
[1646825545253,0.00291108,2752.8,2752.7,1.50462854]
[1646825545454,0.67017893,2752.9,2752.7,1.50462854]
[1646825545654,0.62309001,2752.9,2752.7,0.029168]
[1646825546656,0.62017893,2752.9,2752.7,0.029168]
[1646825546859,0.62309001,2752.9,2752.7,0.029168]
[1646825547455,0.62309001,2752.9,2752.8,0.058336]
[1646825547658,0.0775459,2752.9,2752.8,1.53968319]
[1646825547858,0.07463482,2752.9,2752.8,1.53968319]
[1646825548056,0.00291108,2752.9,2752.8,1.53968319]
[1646825548897,0.07463482,2753.0,2752.8,2.65103587]
[1646825549099,0.07463482,2753.4,2752.9,2.38973719]
[1646825549298,0.00291108,2753.0,2752.9,1.51051519]
[1646825549503,0.00291108,2753.0,2752.9,1.4873924]
[1646825550099,0.07463482,2753.3,2752.9,1.4873924]
[1646825550301,0.00291108,2753.1,2753.0,1.4873924]
[1646825550500,0.00291108,2753.1,2753.0,1.4582244]
[1646825550701,0.04340972,2753.1,2753.0,1.45805386]
[1646825550904,0.11804454,2753.1,2753.0,0.029168]
[1646825551099,0.11804454,2753.1,2753.0,1.48722352]
[1646825551300,0.11513346,2753.1,2753.0,1.4874636]
[1646825551500,0.11513346,2753.1,2753.0,0.029168]
[1646825551701,0.11513346,2753.1,2752.9,0.84085841]
[1646825551955,0.07463482,2753.0,2752.8,1.845938]
[1646825552249,0.07463482,2753.0,2752.9,1.45985817]
[1646825552745,0.07463482,2753.0,2752.8,1.81677]
[1646825552943,0.0775459,2753.0,2752.8,1.81677]
[1646825553342,0.0775459,2753.0,2752.9,1.46003484]
[1646825553744,0.07463482,2753.0,2752.8,1.81677]
[1646825553944,0.07463482,2753.0,2752.7,1.81695]
[1646825554145,0.07463482,2753.0,2752.8,1.45994155]
[1646825555150,0.0775459,2753.0,2752.8,1.45994155]
[1646825556206,0.07463482,2753.0,2752.8,1.45994155]
[1646825556406,0.0775459,2753.0,2752.8,1.45994155]
[1646825557410,0.07463482,2753.0,2752.8,1.45994155]
[1646825557607,0.0775459,2753.0,2752.8,1.45994155]
[1646825558509,0.07463482,2753.0,2752.8,1.45994155]
[1646825558913,0.0775459,2753.0,2752.8,1.45994155]
[1646825559754,0.07463482,2753.0,2752.8,1.45994155]
[1646825559958,0.077366,2753.0,2752.8,1.45994155]
[1646825560955,0.07463482,2753.0,2752.8,1.45994155]
[1646825561156,0.077366,2753.0,2752.8,1.45994155]
[1646825561356,0.077366,2753.0,2752.9,1.27673419]
[1646825561555,0.077366,2753.0,2752.9,2.73667574]
[1646825562157,0.07463482,2753.0,2752.9,2.73667574]
[1646825571802,0.07463482,2753.0,2752.9,1.27673419]
[1646825572002,0.07463482,2753.0,2752.9,2.74313825]
[1646825572203,0.07463482,2753.0,2752.9,1.27673419]
[1646825572603,0.07463482,2753.0,2752.9,2.74310439]
[1646825572802,0.07463482,2753.0,2752.9,1.27673419]
[1646825573303,0.07463482,2753.0,2752.9,2.74325577]
[1646825573704,0.07463482,2753.0,2752.9,1.27673419]
[1646825573904,0.07463482,2753.0,2752.9,2.74325018]
[1646825574104,0.07463482,2753.0,2752.9,1.27673419]
[1646825574305,0.07463482,2753.0,2752.9,2.74324431]
[1646825574551,0.07463482,2753.0,2752.9,2.743175]
[1646825574756,0.07463482,2753.0,2752.9,1.27673419]
[1646825574954,0.07463482,2753.0,2752.9,2.74327529]
[1646825575154,0.07463482,2753.0,2752.9,1.27673419]
[1646825575357,0.07463482,2753.0,2752.9,2.7432539]
[1646825575554,0.07463482,2753.0,2752.9,1.27673419]
[1646825575759,0.07463482,2753.0,2752.9,2.74326853]
[1646825575956,0.07463482,2753.0,2752.9,1.27673419]
[1646825576156,0.07463482,2753.0,2752.9,2.74322561]
[1646825576358,0.07463482,2753.0,2752.9,1.27673419]
[1646825576555,0.07463482,2753.0,2752.9,2.74319677]
[1646825576855,0.07463482,2753.0,2752.9,2.74322355]
[1646825577055,0.07463482,2753.0,2752.9,1.27673419]
[1646825577256,0.07463482,2753.0,2752.9,2.74333012]
[1646825577457,0.07463482,2753.0,2752.9,1.27673419]
[1646825577654,0.07463482,2753.0,2752.9,2.74327749]
[1646825577855,0.07463482,2753.0,2752.9,2.74328093]
[1646825578501,0.07463482,2753.0,2752.9,1.27673419]
[1646825578705,0.07463482,2753.0,2752.9,2.74329099]
[1646825578905,0.07463482,2753.0,2752.9,1.27673419]
[1646825579110,0.04049864,2753.1,2753.0,5.0]
[1646825579307,2.02280913,2753.7,2753.1,5.07762627]
[1646825579308,1.80026457,2753.7,2753.1,5.07762627]
[1646825579505,1.80026457,2753.7,2753.1,16.17762627]
[1646825579706,1.80026457,2753.7,2753.1,17.17762627]
[1646825580506,1.80026457,2753.7,2753.5,1.00995306]
[1646825580709,0.1814,2753.9,2753.1,0.07762627]
[1646825580710,0.66906457,2753.6,2753.1,0.07762627]
[1646825581308,0.66906457,2753.5,2753.1,0.07762627]
[1646825581709,0.67196837,2753.5,2753.1,1.18850535]
[1646825581968,0.67196837,2753.5,2753.1,0.07762627]
[1646825582155,4.16906457,2753.4,2753.1,0.07762627]
[1646825582352,0.66906457,2753.3,2753.1,0.07762627]
[1646825582751,0.66906457,2753.2,2753.1,0.07762627]
[1646825584258,0.1816,2753.6,2753.1,0.07762627]
[1646825584259,0.0029038,2753.3,2753.1,0.07762627]
[1646825584957,0.66906457,2753.4,2753.1,0.07762627]
[1646825585158,0.0029038,2753.3,2753.1,0.07762627]
[1646825586108,0.66906457,2753.5,2753.1,0.07762627]
[1646825586307,0.029168,2753.9,2753.1,0.07762627]
[1646825586308,0.66906457,2753.6,2753.1,0.07762627]
[1646825586607,0.0029038,2753.3,2753.1,0.07762627]
[1646825587205,0.0029038,2753.3,2753.1,14.67762627]
[1646825587407,0.66906457,2753.7,2753.2,3.5]
[1646825587608,0.029168,2753.9,2753.2,3.5]
[1646825587609,0.0029038,2753.3,2753.2,3.5]
[1646825588205,0.0029038,2753.3,2753.2,15.6]
[1646825588610,0.66906457,2753.8,2753.2,15.6]
[1646825588807,0.66906457,2753.9,2753.7,1.06639086]
[1646825589007,0.89160913,2754.1,2753.7,1.06639086]
[1646825589008,0.66906457,2753.8,2753.7,1.06639086]
[1646825589208,0.66952254,2753.8,2753.3,2.1948]
[1646825589459,0.66952254,2753.8,2753.2,1.0]
[1646825589648,0.66952254,2753.7,2753.2,1.0]
[1646825589849,0.66952254,2753.7,2753.1,0.07762627]
[1646825590047,0.67242634,2753.7,2753.1,0.07762627]
[1646825590652,0.67242634,2753.7,2753.2,1.1280645]
[1646825591053,0.66952254,2753.7,2753.2,1.1280645]
[1646825591260,0.0029038,2753.5,2753.2,1.1280645]
[1646825591555,0.0029038,2753.5,2753.1,0.07762627]
[1646825591956,1.58090634,2753.5,2753.1,0.07762627]
[1646825592155,1.57800254,2753.5,2753.1,0.07762627]
[1646825592355,0.66952254,2753.4,2753.1,0.07762627]
[1646825592555,0.67242634,2753.4,2753.1,0.07762627]
[1646825593202,0.0029038,2753.4,2753.1,0.07762627]
[1646825593405,2.64636013,2753.5,2753.1,0.07762627]
[1646825593603,0.0029038,2753.4,2753.1,0.07762627]
[1646825594303,0.67242634,2753.4,2753.1,0.07762627]
[1646825594707,0.66952254,2753.4,2753.1,0.07762627]
[1646825597351,0.6724216,2753.4,2753.1,0.07762627]
[1646825598251,0.66952254,2753.4,2753.1,0.07762627]
[1646825598453,0.6724216,2753.4,2753.1,0.07762627]
[1646825598856,0.70707904,2753.4,2753.1,0.07762627]
[1646825599069,0.07463263,2753.3,2753.2,1.48246929]